bitfinex/quotes_SOLUSD_20241122
["timestamp","ask_amount","ask_price","bid_price","bid_amount"]
[1732287029450,2.5,253.46,253.39,20.0]
[1732287029651,4.60591133,253.46,253.43,31.37613141]
[1732287029846,2.10591133,253.44,253.43,20.0]
[1732287030045,2.10591133,253.46,253.41,31.37613141]
[1732287030255,2.10591133,253.44,253.42,20.0]
[1732287030435,2.10591133,253.44,253.26,23.776884]
[1732287030436,2.10591133,253.4,253.26,23.776884]
[1732287030638,2.10591133,253.4,253.24,0.39408867]
[1732287030639,2.10591133,253.32,253.31,31.37613141]
[1732287031144,2.10591133,253.28,253.27,31.37613141]
[1732287031354,2.10591133,253.26,253.25,31.37613141]
[1732287031551,4.60591133,253.3,253.25,31.37613141]
[1732287031852,2.10591133,253.32,253.29,31.37613141]
[1732287032056,2.10591133,253.34,253.31,31.37613141]
[1732287032242,4.60591133,253.39,253.33,31.37613141]
[1732287032436,4.60591133,253.39,253.38,31.37613141]
[1732287033060,2.10591133,253.39,253.38,31.37613141]
[1732287033562,2.10591133,253.39,253.38,51.37613141]
[1732287034061,2.10591133,253.43,253.39,20.0]
[1732287034239,2.10591133,253.4,253.39,20.0]
[1732287034435,2.10591133,253.36,253.35,31.37613141]
[1732287034636,2.10591133,253.36,253.35,20.0]
[1732287035163,2.10591133,253.32,253.24,31.37613141]
[1732287035854,2.10591133,253.35,253.24,31.37613141]
[1732287036045,2.10591133,253.37,253.35,31.37613141]
[1732287036248,2.10591133,253.38,253.36,31.37613141]
[1732287036542,2.10591133,253.41,253.36,31.37613141]
[1732287036746,2.10591133,253.41,253.25,23.776884]
[1732287036747,2.10591133,253.41,253.39,31.37613141]
[1732287037446,2.10591133,253.38,253.36,20.0]
[1732287037652,2.10591133,253.38,253.36,51.37613141]
[1732287037963,2.10591133,253.4,253.36,51.37613141]
[1732287038161,2.10591133,253.44,253.39,31.37613141]
[1732287038336,4.60591133,253.45,253.43,31.37613141]
[1732287038535,2.10591133,253.45,253.43,31.37613141]
[1732287038756,4.60591133,253.45,253.44,19.3867008]
[1732287039136,2.10591133,253.43,253.42,19.3867008]
[1732287039433,4.60591133,253.41,253.25,28.75681478]
[1732287039632,2.10591133,253.39,253.25,28.75681478]
[1732287039948,15.1876,253.56,253.25,28.75681478]
[1732287039949,2.10591133,253.34,253.25,4.97993078]
[1732287040147,2.5,253.36,253.17,0.39408867]
[1732287040352,2.10591133,253.39,253.21,0.39408867]
[1732287040550,2.5,253.2,253.13,5.10626394]
[1732287040734,2.5,253.33,253.19,38.7734016]
[1732287040935,2.5,253.33,253.32,19.3867008]
[1732287041241,15.9836,253.4,253.28,19.3867008]
[1732287041242,2.5,253.29,253.28,19.3867008]
[1732287041557,2.5,253.29,253.11,19.3867008]
[1732287041558,2.5,253.28,253.22,7.06792593]
[1732287041851,2.5,253.24,253.08,20.0]
[1732287042052,2.5,253.24,253.09,7.06792593]
[1732287042257,2.5,253.24,253.1,20.0]
[1732287042457,2.5,253.24,253.11,7.06792593]
[1732287042632,2.5,253.29,253.11,7.06792593]
[1732287042633,2.5,253.31,253.12,20.59216444]
[1732287042832,2.5,253.31,253.3,31.53092595]
[1732287043033,5.0,253.31,253.3,20.0]
[1732287043454,5.0,253.31,253.28,31.53092595]
[1732287043455,5.0,253.29,253.26,31.53092595]
[1732287043766,31.53092595,253.36,253.26,31.53092595]
[1732287043767,5.0,253.27,253.26,51.53092595]
[1732287043939,5.0,253.27,253.24,31.53092595]
[1732287043940,2.5,253.25,253.24,31.53092595]
[1732287044134,2.5,253.25,253.24,51.53092595]
[1732287045061,2.5,253.28,253.24,51.53092595]
[1732287045251,2.5,253.28,253.27,31.53092595]
[1732287045861,2.5,253.32,253.28,20.0]
[1732287046036,2.5,253.32,253.3,31.53092595]
[1732287046232,2.5,253.34,253.3,31.53092595]
[1732287046436,2.5,253.34,253.33,20.0]
[1732287047755,2.5,253.36,253.33,20.0]
[1732287048060,2.5,253.55,253.24,31.53092595]
[1732287048061,2.5,253.42,253.36,43.776884]
[1732287048263,2.5,253.42,253.41,31.53092595]
[1732287048639,2.5,253.45,253.41,31.53092595]
[1732287048839,5.0,253.45,253.44,31.53092595]
[1732287049553,2.5,253.45,253.44,31.53092595]
[1732287049844,2.5,253.47,253.44,31.53092595]
[1732287049845,5.0,253.47,253.44,31.53092595]
[1732287050045,5.0,253.49,253.47,20.0]
[1732287050336,5.0,253.49,253.48,31.53092595]
[1732287050536,5.0,253.45,253.42,31.53092595]
[1732287050742,5.0,253.39,253.38,31.53092595]
[1732287051468,0.73988661,253.45,253.11,228.50618492]
[1732287051469,5.0,253.35,253.34,31.53092595]
[1732287052664,2.5,253.35,253.34,31.53092595]
[1732287052849,5.0,253.37,253.34,31.53092595]
[1732287053054,5.0,253.41,253.36,31.53092595]
[1732287053354,2.5,253.43,253.4,31.53092595]
[1732287053562,5.0,253.43,253.42,31.53092595]
[1732287055642,2.5,253.41,253.4,31.53092595]
[1732287055859,5.0,253.41,253.4,31.53092595]
[1732287056066,5.0,253.39,253.38,31.53092595]
[1732287056365,2.5,253.37,253.36,31.53092595]
[1732287056569,5.0,253.37,253.36,31.53092595]
[1732287057266,2.5,253.37,253.36,31.53092595]
[1732287057750,5.0,253.37,253.36,31.53092595]
[1732287058459,2.5,253.37,253.36,31.53092595]
[1732287058650,5.0,253.37,253.36,31.53092595]
[1732287060564,2.5,253.37,253.36,51.53092595]
[1732287061149,2.5,253.38,253.37,20.0]
[1732287061353,2.5,253.39,253.37,20.0]
[1732287061354,2.5,253.39,253.37,51.53092595]
[1732287061573,2.5,253.42,253.37,83.0618519]
[1732287061753,2.5,253.4,253.39,31.53092595]
[1732287061945,2.5,253.36,253.33,20.0]
[1732287062362,2.5,253.38,253.33,20.0]
[1732287062758,6.4439,253.56,253.32,5.1581282]
[1732287062759,2.5,253.4,253.38,20.0]
[1732287062959,2.5,253.42,253.4,20.0]
[1732287063164,2.5,253.42,253.41,19.39129636]
[1732287063360,2.5,253.42,253.41,39.39129636]
[1732287063672,5.0,253.49,253.42,20.0]
[1732287063974,2.5,253.47,253.46,19.39129636]
[1732287064151,2.5,253.45,253.44,19.39129636]
[1732287064351,2.5,253.45,253.44,39.39129636]
[1732287064550,2.5,253.47,253.44,39.39129636]
[1732287064773,5.0,253.45,253.26,6.5555]
[1732287064979,2.5,253.45,253.44,19.39129636]
[1732287065150,2.5,253.43,253.42,19.39129636]
[1732287065354,5.0,253.43,253.42,19.39129636]
[1732287065979,0.73976994,253.5,253.26,6.5555]
[1732287065980,5.0,253.41,253.4,19.39129636]
[1732287066365,2.5,253.41,253.4,19.39129636]
[1732287066573,0.7397743,253.5,253.4,19.39129636]
[1732287066574,2.5,253.43,253.4,19.39129636]
[1732287066879,5.0,253.41,253.4,19.39129636]
[1732287067249,5.0,253.37,253.36,19.39129636]
[1732287067454,5.0,253.35,253.34,19.39129636]
[1732287067681,2.5,253.26,253.11,19.39129636]
[1732287067862,19.39129636,253.38,253.11,19.39129636]
[1732287067863,2.5,253.25,253.11,19.39129636]
[1732287068065,2.5,253.25,253.24,19.39129636]
[1732287068268,2.5,253.27,253.24,38.78259272]
[1732287068461,2.5,253.29,253.26,19.39129636]
[1732287068776,2.5,253.31,253.29,19.39129636]
[1732287069076,2.5,253.31,253.3,20.0]
[1732287069485,2.5,253.32,253.3,20.0]
[1732287069656,2.5,253.34,253.31,19.39129636]
[1732287069856,2.5,253.34,253.25,20.0]
[1732287070056,2.5,253.28,253.24,19.39129636]
[1732287070377,2.5,253.3,253.28,20.0]
[1732287070577,2.5,253.32,253.3,20.0]
[1732287070873,2.5,253.38,253.32,20.0]
[1732287071059,2.5,253.36,253.23,5.18306717]
[1732287071272,2.5,253.36,253.24,43.16818036]
[1732287071764,2.5,253.38,253.35,19.39129636]
[1732287071765,5.0,253.38,253.35,19.39129636]
[1732287072074,2.5,253.42,253.37,38.78259272]
[1732287072276,2.5,253.45,253.41,19.39129636]
[1732287072486,16.4177,253.53,253.37,19.39129636]
[1732287072487,5.0,253.48,253.45,20.0]
[1732287072783,2.5,253.52,253.48,20.0]
[1732287073077,5.0,253.52,253.51,39.39129636]
[1732287073279,2.5,253.48,253.47,19.39129636]
[1732287073469,5.0,253.46,253.45,39.39129636]
[1732287073666,5.0,253.46,253.45,19.39129636]
[1732287074752,5.0,253.44,253.43,39.39129636]
[1732287074967,2.5,253.47,253.44,20.0]
[1732287075168,5.0,253.47,253.46,39.39129636]
[1732287075670,2.5,253.47,253.46,39.39129636]
[1732287076070,5.0,253.47,253.46,39.39129636]
[1732287076659,2.5,253.45,253.44,19.39129636]
[1732287076981,5.0,253.45,253.44,39.39129636]
[1732287077560,5.0,253.47,253.45,20.0]
[1732287077779,2.5,253.47,253.46,19.39129636]
[1732287077961,2.5,253.47,253.46,39.39129636]
[1732287078162,5.0,253.47,253.46,39.39129636]
[1732287078372,2.5,253.47,253.46,39.39129636]
[1732287078577,2.5,253.5,253.47,20.0]
[1732287078769,2.5,253.5,253.49,20.0]
[1732287078980,2.5,253.52,253.49,20.0]
[1732287079165,2.5,253.51,253.49,20.0]
[1732287079366,2.5,253.51,253.37,19.39129636]
[1732287079367,2.5,253.44,253.35,20.0]
[1732287079566,2.5,253.43,253.31,20.0]
[1732287079878,5.0,253.44,253.31,20.0]
[1732287080074,2.5,253.37,253.22,6.2977]
[1732287080276,2.5,253.37,253.36,38.78259272]
[1732287080580,2.5,253.39,253.36,38.78259272]
[1732287080767,2.5,253.4,253.38,19.39129636]
[1732287080960,2.5,253.44,253.36,19.39129636]
[1732287081187,2.5,253.46,253.43,19.39129636]
[1732287081486,2.5,253.49,253.46,20.0]
[1732287081692,2.5,253.47,253.38,23.776884]
[1732287081977,5.0,253.45,253.41,20.0]
[1732287082183,2.5,253.45,253.44,39.39129636]
[1732287082385,5.0,253.45,253.44,39.39129636]
[1732287082761,2.5,253.45,253.44,39.39129636]
[1732287083172,5.0,253.45,253.44,39.39129636]
[1732287084363,2.5,253.45,253.44,39.39129636]
[1732287084560,5.0,253.45,253.44,39.39129636]
[1732287085065,5.0,253.45,253.44,19.39129636]
[1732287085572,2.5,253.45,253.44,19.39129636]
[1732287085765,2.5,253.46,253.44,19.39129636]
[1732287086086,2.5,253.52,253.45,19.39129636]
[1732287086274,2.5,253.57,253.52,20.0]
[1732287086470,2.5,253.57,253.56,19.39129636]
[1732287086668,2.5,253.57,253.56,39.39129636]
[1732287087280,5.0,253.59,253.57,20.0]
[1732287087476,34.96189636,253.71,253.59,20.0]
[1732287087477,5.0,253.62,253.59,20.0]
[1732287087787,5.0,253.62,253.58,19.39129636]
[1732287087788,5.0,253.62,253.61,39.39129636]
[1732287087996,2.5,253.64,253.62,20.0]
[1732287088288,2.5,253.65,253.64,20.0]
[1732287088466,5.0,253.65,253.64,20.0]
[1732287088670,2.5,253.59,253.51,23.776884]
[1732287088891,5.0,253.59,253.58,19.39129636]
[1732287089689,2.5,253.6,253.58,19.39129636]
[1732287089875,2.5,253.61,253.6,20.0]
[1732287090079,5.0,253.61,253.6,20.0]
[1732287090281,2.5,253.61,253.6,20.0]
[1732287090480,2.5,253.63,253.6,20.0]
[1732287090690,2.5,253.64,253.63,20.0]
[1732287090892,2.5,253.64,253.63,39.39129636]
[1732287091194,2.5,253.64,253.63,19.39129636]
[1732287091593,5.0,253.6,253.59,39.39129636]
[1732287091774,2.5,253.6,253.59,39.39129636]
[1732287092175,5.0,253.6,253.59,39.39129636]
[1732287092401,5.0,253.57,253.54,19.39129636]
[1732287092574,5.0,253.53,253.52,19.39129636]
[1732287093090,0.73943778,253.6,253.5,19.39129636]
[1732287093091,5.0,253.51,253.5,19.39129636]
[1732287093276,5.0,253.49,253.48,19.39129636]
[1732287093678,2.5,253.49,253.48,19.39129636]
[1732287094196,5.0,253.51,253.48,19.39129636]
[1732287094392,2.5,253.51,253.5,19.39129636]
[1732287094574,2.5,253.51,253.5,39.39129636]
[1732287094777,2.5,253.53,253.51,20.0]
[1732287094975,2.5,253.53,253.52,39.39129636]
[1732287096071,0.73928882,253.66,253.52,39.39129636]
[1732287096072,2.5,253.57,253.52,19.39129636]
[1732287096292,2.5,253.57,253.56,39.39129636]
[1732287096779,5.0,253.58,253.57,20.0]
[1732287096987,5.0,253.58,253.57,39.39129636]
[1732287097797,2.5,253.58,253.57,39.39129636]
[1732287098009,2.5,253.6,253.57,39.39129636]
[1732287098189,2.5,253.6,253.59,39.39129636]
[1732287098395,2.5,253.62,253.6,20.0]
[1732287098618,2.5,253.64,253.62,20.0]
[1732287098907,5.0,253.64,253.63,39.39129636]
[1732287099204,5.0,253.66,253.63,58.78259272]
[1732287099389,2.5,253.66,253.65,19.39129636]
[1732287099586,5.0,253.66,253.65,39.39129636]
[1732287099904,2.5,253.69,253.66,20.0]
[1732287100109,2.5,253.69,253.68,39.39129636]
[1732287100307,2.5,253.71,253.68,39.39129636]
[1732287100484,2.5,253.71,253.7,39.39129636]
[1732287100807,5.0,253.74,253.71,20.0]
[1732287100982,2.5,253.74,253.71,20.0]
[1732287101180,2.5,253.76,253.74,20.0]
[1732287101381,2.5,253.76,253.75,38.78259272]
[1732287101584,2.5,253.76,253.75,58.78259272]
[1732287101782,2.5,253.76,253.75,39.39129636]
[1732287101998,2.5,253.76,253.75,58.78259272]
[1732287102393,2.5,253.78,253.76,20.0]
[1732287102596,2.5,253.78,253.77,39.39129636]
[1732287102995,2.5,253.7,253.6,4.99799797]
[1732287103215,2.5,253.75,253.7,20.0]
[1732287103383,2.5,253.74,253.7,20.0]
[1732287103590,2.5,253.76,253.7,20.0]
[1732287103801,2.5,253.79,253.75,58.78259272]
[1732287104013,2.5,253.79,253.78,39.39129636]
[1732287104694,5.0,253.79,253.78,39.39129636]
[1732287105496,2.5,253.79,253.78,39.39129636]
[1732287105694,5.0,253.79,253.78,39.39129636]
[1732287106512,5.0,253.79,253.78,19.39129636]
[1732287107004,2.5,253.79,253.78,19.39129636]
[1732287107198,2.5,253.81,253.8,23.776884]
[1732287107387,2.5,253.83,253.81,20.0]
[1732287107588,2.5,253.87,253.83,20.0]
[1732287107804,2.5,253.87,253.86,39.39129636]
[1732287108213,2.5,254.02,253.87,20.0]
[1732287108214,2.5,253.89,253.87,20.0]
[1732287108563,2.5,253.89,253.88,19.39129636]
[1732287111117,2.5,253.89,253.88,39.39129636]
[1732287111803,2.5,253.89,253.88,19.39129636]
[1732287112188,2.5,253.83,253.82,19.39129636]
[1732287112606,2.5,253.81,253.8,19.39129636]
[1732287113307,2.5,253.74,253.63,24.44454272]
[1732287113522,2.5,253.76,253.63,24.44454272]
[1732287113696,2.5,253.77,253.63,24.44454272]
[1732287113904,2.5,253.73,253.63,24.44454272]
[1732287114793,2.5,253.73,253.64,23.776884]
[1732287115011,2.5,253.73,253.72,43.16818036]
[1732287115393,2.5,253.73,253.72,19.39129636]
[1732287116100,2.5,253.71,253.7,19.39129636]
[1732287117899,2.5,253.67,253.63,5.05324636]
[1732287118114,21.89129636,253.75,253.53,6.2611]
[1732287118115,2.5,253.65,253.64,19.39129636]
[1732287118796,2.5,253.61,253.6,19.39129636]
[1732287119321,2.5,253.58,253.5,5.17885578]
[1732287119492,2.5,253.54,253.48,19.39129636]
[1732287119701,2.5,253.49,253.37,28.34739636]
[1732287120001,2.5,253.53,253.39,2.5]
[1732287120206,2.5,253.53,253.41,2.5]
[1732287120402,2.5,253.56,253.52,19.39129636]
[1732287120620,0.73931922,253.65,253.37,30.9700977]
[1732287120621,2.5,253.6,253.48,2.5]
[1732287120816,2.5,253.6,253.59,39.39129636]
[1732287121323,2.5,253.6,253.59,19.39129636]
[1732287121894,7.13710434,253.69,253.59,19.39129636]
[1732287121895,2.5,253.63,253.6,20.0]
[1732287122094,2.5,253.61,253.6,20.0]
[1732287122315,2.5,253.56,253.5,19.39129636]
[1732287122519,2.5,253.6,253.54,23.776884]
[1732287122703,2.5,253.62,253.56,23.776884]
[1732287122901,2.5,253.64,253.59,20.0]
[1732287123104,2.5,253.64,253.61,20.0]
[1732287123401,2.5,253.64,253.63,39.39129636]
[1732287123606,2.5,253.65,253.63,63.16818036]
[1732287123813,2.5,253.65,253.64,20.0]
[1732287124401,2.5,253.6,253.59,19.39129636]
[1732287124617,2.5,253.58,253.57,19.39129636]
[1732287125121,22.6305347,253.67,253.38,15.5669]
[1732287125122,2.5,253.56,253.55,19.39129636]
[1732287125999,3.23942019,253.72,253.55,19.39129636]
[1732287126000,2.5,253.61,253.55,19.39129636]
[1732287126201,2.5,253.67,253.6,38.78259272]
[1732287126402,2.5,253.67,253.66,19.39129636]
[1732287127028,2.5,253.67,253.66,39.39129636]
[1732287128238,2.5,253.67,253.66,19.39129636]
[1732287128607,2.5,253.65,253.64,19.39129636]
[1732287128800,2.5,253.63,253.62,19.39129636]
[1732287129122,2.5,253.63,253.5,5.116832]
[1732287129123,2.5,253.51,253.5,5.116832]
[1732287129317,2.5,253.51,253.5,19.39129636]
[1732287130430,2.5,253.57,253.51,20.0]
[1732287130608,2.5,253.57,253.56,39.39129636]
[1732287131315,2.5,253.59,253.57,23.776884]
[1732287131525,2.5,253.6,253.58,19.39129636]
[1732287131810,2.5,253.64,253.61,20.0]
[1732287132015,2.5,253.66,253.64,20.0]
[1732287132221,2.5,253.66,253.65,19.39129636]
[1732287132546,2.5,253.68,253.66,43.776884]
[1732287132824,2.5,253.68,253.67,39.39129636]
[1732287133410,2.5,253.7,253.68,43.776884]
[1732287133605,2.5,253.7,253.63,19.39129636]
[1732287133606,2.5,253.7,253.69,19.39129636]
[1732287133822,2.5,253.68,253.67,19.39129636]
[1732287136304,2.5,253.66,253.65,19.39129636]
[1732287136506,2.5,253.64,253.63,19.39129636]
[1732287137715,2.5,253.64,253.63,39.39129636]
[1732287139009,2.5,253.64,253.63,58.78259272]
[1732287139502,2.5,253.64,253.63,63.16818036]
[1732287139711,0.73904974,253.76,253.66,20.0]
[1732287139910,6.3999,253.84,253.75,19.39129636]
[1732287140115,7.13866692,253.84,253.81,19.39129636]
[1732287140328,6.3999,253.84,253.81,19.39129636]
[1732287140715,7.13856321,253.84,253.79,19.39129636]
[1732287140910,6.3999,253.84,253.79,19.39129636]
[1732287141215,6.3999,253.84,253.83,19.39129636]
[1732287141422,0.73860428,253.92,253.83,19.39129636]
[1732287141730,16.85616699,253.93,253.89,19.39129636]
[1732287141914,22.2167,254.02,253.91,19.39129636]
[1732287142228,22.2167,254.02,253.89,19.39129636]
[1732287142229,22.2167,254.02,253.97,19.39129636]
[1732287142430,22.2167,254.02,253.78,5.0]
[1732287142431,0.73827646,254.01,253.95,19.39129636]
[1732287143135,0.73827646,254.01,253.93,19.39129636]
[1732287143810,3.23827646,254.01,253.93,19.39129636]
[1732287144130,3.23827646,254.01,253.76,24.50449449]
[1732287144131,21.89129636,253.98,253.9,19.39129636]
[1732287144336,0.73848242,253.97,253.9,19.39129636]
[1732287144633,0.73848242,253.97,253.91,19.39129636]
[1732287145010,21.89129636,253.96,253.87,19.39129636]
[1732287145212,21.89129636,253.96,253.68,26.5713]
[1732287145213,19.39129636,253.91,253.83,19.39129636]
[1732287145547,0.73865315,253.9,253.83,19.39129636]
[1732287145717,20.12985745,253.91,253.83,19.39129636]
[1732287146134,22.62985745,253.91,253.81,19.39129636]
[1732287146517,3.23856109,253.91,253.83,19.39129636]
[1732287146716,0.73856109,253.91,253.85,19.39129636]
[1732287147034,0.73863176,253.92,253.85,19.39129636]
[1732287148036,2.5,253.9,253.81,19.39129636]
[1732287148240,2.5,253.9,253.61,6.3339]
[1732287148241,20.12990226,253.89,253.61,6.3339]
[1732287148418,19.39129636,253.87,253.78,19.39129636]
[1732287148616,2.5,253.93,253.63,24.39129636]
[1732287148617,0.7387064,253.94,253.85,19.39129636]
[1732287148816,0.73850126,253.95,253.87,19.39129636]
[1732287149014,134.8,254.0,253.89,19.39129636]
[1732287149015,0.73841296,253.97,253.89,19.39129636]
[1732287149221,0.73841296,253.97,253.91,19.39129636]
[1732287149414,0.73835195,254.01,253.93,19.39129636]
[1732287149818,22.9549794,254.02,253.93,19.39129636]
[1732287150438,42.34627576,254.02,253.93,19.39129636]
[1732287150616,19.39129636,254.0,253.89,19.39129636]
[1732287150816,19.39129636,254.0,253.93,19.39129636]
[1732287150817,0.73837071,254.0,253.93,19.39129636]
[1732287151034,0.73837071,254.0,253.91,19.39129636]
[1732287151035,3.23837071,254.0,253.91,19.39129636]
[1732287151238,22.62966707,254.0,253.89,19.39129636]
[1732287151736,20.12966707,254.0,253.89,19.39129636]
[1732287151935,20.12966707,254.0,253.91,19.39129636]
[1732287152244,20.12966707,254.0,253.89,19.39129636]
[1732287152418,20.12966707,254.0,253.84,23.776884]
[1732287152419,20.12966707,254.0,253.91,19.39129636]
[1732287152612,0.73837071,254.0,253.91,19.39129636]
[1732287152816,0.73831063,254.01,253.93,19.39129636]
[1732287153015,22.2167,254.02,253.95,19.39129636]
[1732287153441,22.2167,254.02,253.86,23.776884]
[1732287153639,22.2167,254.02,253.95,19.39129636]
[1732287154018,19.39129636,254.0,253.89,19.39129636]
[1732287154241,0.73833668,253.99,253.91,19.39129636]
[1732287154627,0.73833668,253.99,253.89,19.39129636]
[1732287155036,19.39129636,253.96,253.87,19.39129636]
[1732287155237,0.73850362,253.95,253.87,19.39129636]
[1732287155942,0.73850362,253.95,253.76,19.39129636]
[1732287155943,0.73841504,253.96,253.89,19.39129636]
[1732287156119,0.73840278,253.98,253.91,19.39129636]
[1732287157124,0.73833532,253.99,253.91,19.39129636]
[1732287158126,19.39129636,253.98,253.89,19.39129636]
[1732287158443,19.39129636,253.98,253.76,24.46781205]
[1732287158444,19.39129636,253.96,253.85,19.39129636]
[1732287158646,0.73850443,253.95,253.89,19.39129636]
[1732287159046,19.39129636,253.96,253.87,19.39129636]
[1732287159220,19.39129636,253.96,253.76,24.46781205]
[1732287159221,0.73841491,253.96,253.89,19.39129636]
[1732287159425,0.73841491,253.97,253.91,19.39129636]
[1732287159734,19.39129636,253.98,253.89,19.39129636]
[1732287159934,0.73842288,253.97,253.89,19.39129636]
[1732287160940,19.39129636,253.94,253.77,20.0]
[1732287161148,0.73850732,253.93,253.85,19.39129636]
[1732287161724,19.39129636,253.88,253.8,19.39129636]
[1732287161922,19.39129636,253.84,253.76,19.39129636]
[1732287162142,19.39129636,253.82,253.74,19.39129636]
[1732287162527,0.73891155,253.81,253.74,19.39129636]
[1732287162948,21.5896,253.85,253.8,19.39129636]
[1732287163225,21.5896,253.85,253.64,2.5]
[1732287163226,15.0529,253.85,253.82,19.39129636]
[1732287163636,15.0529,253.85,253.8,19.39129636]
[1732287163846,15.0529,253.85,253.76,19.39129636]
[1732287164148,23.33169636,253.79,253.7,19.39129636]
[1732287164332,0.73900142,253.78,253.71,19.39129636]
[1732287164535,20.13029778,253.78,253.69,19.39129636]
[1732287164733,20.13029778,253.78,253.63,5.16619345]
[1732287164734,19.39129636,253.74,253.67,19.39129636]
[1732287165052,0.73906806,253.73,253.67,19.39129636]
[1732287165258,0.73906806,253.73,253.65,19.39129636]
[1732287165432,19.39129636,253.72,253.63,19.39129636]
[1732287165634,0.73915917,253.71,253.63,19.39129636]
[1732287166137,19.39129636,253.7,253.61,19.39129636]
[1732287166331,0.7392516,253.69,253.61,19.39129636]
[1732287166524,19.39129636,253.72,253.63,19.39129636]
[1732287166729,0.73911919,253.74,253.67,19.39129636]
[1732287167037,9.8472,253.88,253.73,19.39129636]
[1732287167038,19.39129636,253.82,253.73,19.39129636]
[1732287167235,0.73893206,253.81,253.73,19.39129636]
[1732287167635,0.73893206,253.81,253.71,19.39129636]
[1732287167636,19.39129636,253.8,253.71,19.39129636]
[1732287167951,0.73892287,253.79,253.71,19.39129636]
[1732287168139,19.39129636,253.72,253.49,6.4668]
[1732287168343,0.73917339,253.71,253.64,19.39129636]
[1732287168583,19.39129636,253.74,253.64,19.39129636]
[1732287168738,0.73907997,253.73,253.66,19.39129636]
[1732287169353,137.3,253.81,253.66,19.39129636]
[1732287169354,19.39129636,253.76,253.66,19.39129636]
[1732287169564,0.73903596,253.75,253.67,43.776884]
[1732287170434,0.73903596,253.75,253.68,19.39129636]
[1732287170629,0.73899442,253.77,253.68,19.39129636]
[1732287170931,0.73899442,253.77,253.7,19.39129636]
[1732287171144,0.73893391,253.79,253.7,19.39129636]
[1732287171457,0.73892959,253.82,253.74,19.39129636]
[1732287171655,0.73892959,253.82,253.76,19.39129636]
[1732287172032,19.39129636,253.78,253.69,23.776884]
[1732287172248,0.73895933,253.77,253.69,23.776884]
[1732287172463,20.13025288,253.82,253.72,19.39129636]
[1732287172842,19.39129636,253.8,253.72,19.39129636]
[1732287173046,0.73895652,253.82,253.66,20.0]
[1732287173047,19.39129636,253.74,253.66,20.0]
[1732287173361,134.8,253.81,253.66,20.0]
[1732287173362,0.73906068,253.73,253.67,19.39129636]
[1732287173567,19.39129636,253.74,253.66,20.0]
[1732287173762,19.39129636,253.72,253.63,19.39129636]
[1732287173971,19.39129636,253.68,253.59,19.39129636]
[1732287174168,0.73935491,253.67,253.59,19.39129636]
[1732287174475,19.39129636,253.64,253.55,19.39129636]
[1732287174767,0.7393722,253.63,253.57,19.39129636]
[1732287174957,0.73935269,253.65,253.57,19.39129636]
[1732287175157,19.39129636,253.64,253.55,19.39129636]
[1732287175364,19.39129636,253.64,253.37,33.01909265]
[1732287175365,0.73944334,253.63,253.53,19.39129636]
[1732287175569,0.73944334,253.63,253.55,19.39129636]
[1732287175861,0.73944334,253.63,253.57,19.39129636]
[1732287176088,176.42759636,253.66,253.59,19.39129636]
[1732287176089,22.2363,253.66,253.59,19.39129636]
[1732287176276,0.73936423,253.65,253.57,19.39129636]
[1732287178170,0.73936423,253.65,253.48,4.99777299]
[1732287178171,0.73936423,253.65,253.56,20.0]
[1732287178879,19.39129636,253.64,253.55,19.39129636]
[1732287179057,0.73940661,253.63,253.57,19.39129636]
[1732287179372,0.73935906,253.65,253.57,19.39129636]
[1732287180158,19.39129636,253.64,253.55,19.39129636]
[1732287180351,0.73949136,253.63,253.55,19.39129636]
[1732287180661,19.39129636,253.6,253.51,19.39129636]
[1732287180853,0.73960029,253.59,253.51,19.39129636]
[1732287181754,0.73957441,253.62,253.57,19.39129636]